bitfinex-derivatives/quotes_SOLF0:USTF0_20251023
["timestamp","ask_amount","ask_price","bid_price","bid_amount"]
[1761231668095,49.1307534,189.93,189.86,2.77]
[1761231668096,1.595371,189.93,189.86,2.77]
[1761231668596,4.395371,189.93,189.86,2.77]
[1761231668794,2.8,189.93,189.86,2.77]
[1761231669090,2.8,189.93,189.87,4.7387]
[1761231669289,4.5266607,189.93,189.87,9.104071]
[1761231670491,2.8,189.92,189.85,6.334571]
[1761231670691,2.8,189.92,189.85,4.365371]
[1761231671292,4.5266607,189.93,189.88,2.77]
[1761231671488,4.5266607,189.95,189.88,2.77]
[1761231672085,12.0636607,189.95,189.88,7.5084]
[1761231672392,4.5266607,189.94,189.88,7.5084]
[1761231674801,2.8,189.93,189.86,4.739]
[1761231674996,2.8,189.93,189.86,7.509]
[1761231675207,1.595371,189.95,189.87,9.104071]
[1761231675208,6.332271,189.95,189.87,9.104071]
[1761231675395,6.332271,189.95,189.88,2.77]
[1761231675796,7.38467585,189.95,189.88,2.77]
[1761231675999,2.8,189.95,189.88,2.77]
[1761231676202,7.38467585,189.95,189.88,2.77]
[1761231677000,7.537,189.95,189.88,2.77]
[1761231677195,2.8,189.93,189.89,4.84424047]
[1761231677397,2.8,189.93,189.9,4.84424047]
[1761231677702,2.8,189.93,189.91,4.84424047]
[1761231678001,2.8,189.93,189.92,4.84424047]
[1761231679299,7.38467585,189.93,189.92,4.84424047]
[1761231680806,4.58467585,189.93,189.92,4.84424047]
[1761231681104,2.8,189.95,189.92,4.84424047]
[1761231681303,2.8,189.95,189.93,4.84424047]
[1761231681504,7.537,189.95,189.94,4.84424047]
[1761231681702,2.8,189.94,189.84,2.77]
[1761231681907,2.8,189.91,189.84,2.77]
[1761231683000,2.8,189.88,189.79,2.77]
[1761231683502,5.29489996,189.86,189.79,2.77]
[1761231684209,2.8,189.85,189.79,2.77]
[1761231685408,4.7398,189.84,189.79,2.77]
[1761231685605,4.7398,189.84,189.75,2.73]
[1761231685606,2.85,189.83,189.75,2.73]
[1761231685804,2.85,189.82,189.75,2.73]
[1761231686110,5.34489996,189.8,189.71,2.73]
[1761231686502,2.49489996,189.8,189.71,2.73]
[1761231686703,7.5913,189.78,189.71,2.73]
[1761231686903,2.85,189.78,189.71,2.73]
[1761231687100,4.7415,189.77,189.71,2.73]
[1761231687303,10.08639996,189.77,189.71,2.73]
[1761231688207,10.08639996,189.77,189.66,2.73]
[1761231688208,2.85,189.75,189.66,2.73]
[1761231688606,5.34489996,189.74,189.66,2.73]
[1761231689203,2.74,189.73,189.66,2.73]
[1761231689502,2.74,189.71,189.62,2.84]
[1761231689699,5.23489996,189.71,189.62,2.84]
[1761231690010,2.49489996,189.71,189.62,2.84]
[1761231690199,2.74,189.7,189.62,7.5848]
[1761231691212,2.74,189.68,189.59,4.7457]
[1761231691512,5.23489996,189.68,189.59,7.5857]
[1761231692007,2.74,189.67,189.59,2.84]
[1761231693903,2.74,189.65,189.56,2.84]
[1761231694403,44.26,189.71,189.56,3.9]
[1761231694604,2.74,189.77,189.59,2.84]
[1761231694805,2.74,189.76,189.68,4.7433]
[1761231695906,2.74,189.76,189.66,2.84]
[1761231695907,2.74,189.76,189.66,7.584]
[1761231696113,2.74,189.76,189.66,2.84]
[1761231697315,2.74,189.74,189.66,2.84]
[1761231697499,2.74,189.74,189.64,4.7443]
[1761231697904,2.74,189.74,189.65,7.5841]
[1761231698213,2.74,189.74,189.66,2.84]
[1761231699012,2.74,189.74,189.67,4.7438]
[1761231699215,2.74,189.74,189.66,2.84]
[1761231701417,2.74,189.74,189.63,4.7448]
[1761231701619,4.7426,189.73,189.63,7.5848]
[1761231701917,44.28,189.77,189.63,7.5848]
[1761231701918,2.74,189.72,189.63,7.5848]
[1761231702619,2.74,189.71,189.63,7.5848]
[1761231703322,2.74,189.71,189.64,2.84]
[1761231703523,2.74,189.7,189.61,4.7453]
[1761231704317,2.74,189.69,189.59,2.84]
[1761231704624,2.74,189.68,189.53,2.84]
[1761231704818,2.74,189.68,189.45,68.71393978]
[1761231704819,2.74,189.68,189.5,2.84]
[1761231705117,2.74,189.66,189.5,2.84]
[1761231705422,2.74,189.66,189.56,2.84]
[1761231706812,7.4845,189.65,189.56,7.5864]
[1761231707217,2.74,189.64,189.56,2.84]
[1761231707816,2.74,189.63,189.54,4.747]
[1761231708220,2.74,189.62,189.53,2.84]
[1761231708525,2.74,189.62,189.49,2.84]
[1761231708912,7.4856,189.6,189.51,7.5876]
[1761231709116,2.74,189.6,189.52,2.84]
[1761231710226,2.74,189.6,189.52,7.5874]
[1761231712625,2.74,189.6,189.53,7.5871]
[1761231712818,2.74,189.6,189.53,2.84]
[1761231713124,9.94,189.67,189.53,2.84]
[1761231713322,4.7444,189.65,189.53,2.84]
[1761231713523,4.7444,189.65,189.57,2.84]
[1761231713719,7.4844,189.65,189.57,2.84]
[1761231714022,2.74,189.64,189.57,2.84]
[1761231714526,7.4848,189.64,189.57,2.84]
[1761231716225,2.88845,189.7,189.58,4.746]
[1761231716624,2.74,189.64,189.53,2.84]
[1761231717029,7.4847,189.64,189.55,4.7467]
[1761231717237,2.74,189.64,189.55,4.7467]
[1761231717433,2.74,189.64,189.55,7.5867]
[1761231718729,7.4847,189.64,189.56,4.7464]
[1761231719027,2.62,189.68,189.57,2.61]
[1761231719531,4.7442,189.66,189.58,7.3559]
[1761231720332,4.7442,189.66,189.59,2.61]
[1761231720518,7.3636,189.68,189.59,7.3556]
[1761231720831,7.3636,189.68,189.6,2.61]
[1761231722034,7.3636,189.68,189.6,7.3554]
[1761231723335,4.7439,189.67,189.6,7.3554]
[1761231723535,2.62,189.68,189.53,2.61]
[1761231724028,4.7444,189.65,189.53,2.61]
[1761231724233,2.62,189.64,189.53,2.61]
[1761231724534,4.7452,189.62,189.53,2.61]
[1761231724737,4.7452,189.62,189.47,9.06]
[1761231724738,7.3652,189.62,189.55,7.3568]
[1761231724932,2.62,189.66,189.56,2.61]
[1761231725132,4.7447,189.64,189.56,2.61]
[1761231725330,4.7447,189.64,189.57,4.7462]
[1761231725529,4.7447,189.64,189.57,7.3562]
[1761231726129,4.7449,189.63,189.57,2.61]
[1761231727033,4.7452,189.62,189.57,2.61]
[1761231727333,2.62,189.61,189.57,2.61]
[1761231727536,2.62,189.61,189.55,2.61]
[1761231728035,2.62,189.61,189.46,9.4978]
[1761231728036,2.62,189.66,189.57,2.61]
[1761231728330,4.7447,189.64,189.57,2.61]
[1761231728536,2.62,189.66,189.59,2.61]
[1761231729031,4.50009087,189.69,189.59,2.61]
[1761231729337,4.50009087,189.69,189.49,6.71393978]
[1761231729338,2.76845,189.7,189.54,2.61]
[1761231729539,4.7437,189.68,189.53,6.71393978]
[1761231729738,2.76845,189.7,189.54,2.61]
[1761231730232,2.76845,189.7,189.52,9.4949]
[1761231730233,2.76845,189.7,189.55,2.61]
[1761231730832,2.62,189.68,189.55,2.61]
[1761231731028,6.71393978,189.65,189.48,2.61]
[1761231731233,2.62,189.64,189.48,2.61]
[1761231731433,2.62,189.63,189.48,2.61]
[1761231731635,4.39937276,189.64,189.52,2.61]
[1761231731939,2.62,189.67,189.52,2.61]
[1761231732331,9.27849312,189.68,189.54,4.7469]
[1761231732531,2.62,189.64,189.52,2.61]
[1761231732834,2.62,189.63,189.52,2.61]
[1761231733135,4.7457,189.6,189.53,4.7472]
[1761231733337,2.62,189.6,189.52,2.61]
[1761231733536,2.62,189.6,189.48,2.61]
[1761231734934,4.7459,189.59,189.52,4.7474]
[1761231735335,4.7459,189.59,189.51,2.61]
[1761231735636,4.7459,189.59,189.53,4.7472]
[1761231735834,2.62,189.6,189.53,4.7472]
[1761231736742,7.366,189.59,189.51,7.3577]
[1761231737043,2.62,189.58,189.51,7.3577]
[1761231737238,2.62,189.58,189.49,4.7482]
[1761231737437,2.62,189.58,189.47,2.61]
[1761231737640,2.62,189.56,189.4,2.61]
[1761231737838,2.62,189.55,189.4,2.61]
[1761231738740,2.62,189.54,189.44,2.61]
[1761231739337,4.40773972,189.57,189.44,2.61]
[1761231739543,2.62,189.57,189.44,2.61]
[1761231741037,2.62,189.56,189.49,4.7483]
[1761231741836,2.62,189.56,189.5,4.7479]
[1761231742037,2.62,189.61,189.49,2.61]
[1761231743043,2.62,189.6,189.49,2.61]
[1761231743242,2.62,189.58,189.45,2.61]
[1761231743441,44.32,189.57,189.45,2.61]
[1761231743649,2.62,189.55,189.45,2.61]
[1761231744544,2.62,189.54,189.45,2.61]
[1761231744938,4.7468,189.56,189.49,2.61]
[1761231745140,2.62,189.58,189.49,2.61]
[1761231745651,16.04715375,189.64,189.44,4.08442023]
[1761231745652,2.87,189.63,189.51,2.61]
[1761231746142,2.87,189.63,189.53,4.7472]
[1761231746348,2.87,189.63,189.51,2.61]
[1761231746946,7.615,189.63,189.55,4.7467]
[1761231747353,2.87,189.62,189.55,4.7467]
[1761231748150,2.87,189.62,189.55,7.4367]
[1761231748350,4.745,189.63,189.55,7.4367]
[1761231749551,11.89556317,189.65,189.55,2.69]
[1761231749757,4.42116317,189.64,189.55,2.69]
[1761231750550,11.89596317,189.64,189.56,4.7465]
[1761231750740,2.73,189.62,189.51,2.71]
[1761231751946,4.7457,189.6,189.53,4.7472]
[1761231752849,2.73,189.59,189.53,4.7472]
[1761231753655,7.476,189.59,189.51,2.71]
[1761231754354,7.476,189.59,189.52,4.7474]
[1761231754554,7.476,189.59,189.52,7.4574]
[1761231755854,7.476,189.59,189.53,4.7472]
[1761231756156,2.73,189.59,189.53,2.71]
[1761231756559,4.7453,189.61,189.54,4.7469]
[1761231756855,4.7453,189.61,189.54,7.4569]
[1761231757364,7.4753,189.61,189.54,7.4569]
[1761231757654,7.4753,189.61,189.55,7.4567]
[1761231759750,2.73,189.61,189.55,7.4567]
[1761231762159,2.73,189.61,189.56,7.4564]
[1761231763060,2.73,189.61,189.56,2.71]
[1761231763261,2.73,189.61,189.52,2.71]
[1761231763561,2.73,189.61,189.54,2.71]
[1761231764156,4.7446,189.64,189.54,2.71]
[1761231764858,9.16227405,189.64,189.54,2.71]
[1761231765055,4.7446,189.64,189.57,4.7461]
[1761231765455,7.4746,189.64,189.57,7.4561]
[1761231765861,2.73,189.64,189.55,4.7468]
[1761231766056,2.73,189.64,189.52,2.71]
[1761231766660,4.7454,189.61,189.54,4.7469]
[1761231766862,4.7454,189.61,189.54,7.4569]
[1761231767863,7.4757,189.6,189.54,7.4569]
[1761231769157,4.91929019,189.65,189.54,7.4569]
[1761231769158,7.4759,189.59,189.54,2.71]
[1761231769360,2.73,189.58,189.51,7.4576]
[1761231769661,2.73,189.58,189.52,2.71]
[1761231770164,2.73,189.58,189.52,7.4574]
[1761231770461,2.73,189.58,189.47,6.5325608]
[1761231770658,2.73,189.58,189.46,6.5325608]
[1761231770972,2.73,189.58,189.47,2.71]
[1761231771657,55.53605388,189.62,189.51,2.71]
[1761231771864,2.73,189.61,189.51,2.71]
[1761231772059,2.73,189.61,189.53,4.7472]
[1761231772060,4.7459,189.59,189.53,4.7472]
[1761231772563,2.73,189.65,189.53,2.71]
[1761231772760,4.7449,189.63,189.58,4.7459]
[1761231772964,4.7449,189.63,189.59,2.71]
[1761231772965,2.73,189.63,189.59,2.71]
[1761231773357,2.73,189.65,189.59,2.71]
[1761231773760,2.73,189.63,189.58,4.7459]
[1761231773963,2.73,189.62,189.58,4.7459]
[1761231774657,2.73,189.62,189.56,4.7465]
[1761231775964,7.4752,189.62,189.56,4.7465]
[1761231776963,4.7452,189.62,189.57,2.71]
[1761231777159,7.4752,189.62,189.57,2.71]
[1761231777555,4.7452,189.62,189.57,2.71]
[1761231777964,7.4752,189.62,189.58,2.71]
[1761231780270,4.7447,189.64,189.58,2.71]
[1761231780675,2.79,189.63,189.57,4.7462]
[1761231780867,2.79,189.63,189.55,7.3567]
[1761231781471,7.5352,189.62,189.55,7.3567]
[1761231782668,2.79,189.62,189.55,2.61]
[1761231782874,2.79,189.65,189.55,2.61]
[1761231783074,4.42079303,189.67,189.62,4.7449]
[1761231783266,51.51079303,189.7,189.63,2.61]
[1761231783468,4.42079303,189.69,189.63,2.61]
[1761231783668,9.16419303,189.69,189.63,2.61]
[1761231783864,47.09,189.7,189.65,2.61]
[1761231785367,0.13612,189.75,189.67,2.61]
[1761231785368,2.92612,189.75,189.67,2.61]
[1761231785568,4.7424,189.73,189.67,2.61]
[1761231786065,9.15764537,189.73,189.67,2.61]
[1761231786865,49.17802,189.75,189.67,2.61]
[1761231787470,0.13612,189.75,189.67,6.69442023]
[1761231787774,0.13612,189.75,189.68,2.61]
[1761231787976,0.13612,189.75,189.67,4.08442023]
[1761231787977,0.13612,189.75,189.74,2.61]
[1761231788162,4.7404,189.81,189.74,2.61]
[1761231788367,2.79,189.83,189.76,4.7414]
[1761231788567,2.79,189.83,189.76,7.3514]
[1761231789764,2.79,189.83,189.72,2.61]
[1761231790062,2.79,189.82,189.72,2.61]
[1761231790672,4.08442023,189.83,189.69,4.7433]
[1761231790868,2.79,189.78,189.68,2.61]
[1761231791468,7.5313,189.77,189.68,2.61]
[1761231792471,2.79,189.77,189.68,2.61]
[1761231793072,2.79,189.76,189.68,2.61]
[1761231793972,49.0208,189.79,189.64,2.61]
[1761231794382,51.8108,189.79,189.64,2.61]
[1761231794676,2.79,189.84,189.71,2.61]
[1761231794886,2.79,189.84,189.72,2.61]
[1761231795174,2.79,189.84,189.76,4.7413]
[1761231795878,19.7389,189.87,189.78,7.3509]
[1761231796678,15.0,189.87,189.78,2.61]
[1761231797477,15.0,189.87,189.81,4.7401]
[1761231798580,15.0,189.87,189.79,7.3507]
[1761231799268,15.0,189.87,189.8,7.3504]
[1761231800177,15.0,189.87,189.81,2.61]
[1761231801886,17.79,189.87,189.7,2.61]
[1761231802087,4.7391,189.86,189.78,4.7409]
[1761231802279,7.5291,189.86,189.78,4.7409]
[1761231803281,2.79,189.85,189.76,4.7415]
[1761231803789,7.5295,189.85,189.77,4.7411]
[1761231804193,7.5295,189.85,189.77,2.61]
[1761231805079,4.7398,189.84,189.77,2.61]
[1761231805284,2.79,189.83,189.67,2.61]
[1761231806290,2.72,189.8,189.72,4.7425]
[1761231806993,2.72,189.8,189.73,2.88]
[1761231808390,7.4607,189.8,189.73,2.88]
[1761231808593,2.72,189.79,189.72,4.7425]
[1761231810091,7.461,189.79,189.72,7.5525]
[1761231810295,2.72,189.79,189.73,7.5521]
[1761231810492,9.32855825,189.84,189.73,2.81]
[1761231810790,4.7401,189.82,189.73,2.81]
[1761231810996,2.63,189.81,189.73,2.81]
[1761231811595,7.3705,189.81,189.75,4.7417]
[1761231812094,2.63,189.85,189.75,2.81]
[1761231812995,2.63,189.82,189.75,2.81]
[1761231815089,2.63,189.82,189.75,7.5516]
[1761231815692,4.7399,189.83,189.76,7.5513]
[1761231816088,4.7394,189.85,189.76,2.81]
[1761231816294,2.63,189.86,189.79,4.7407]
[1761231818094,7.3692,189.86,189.79,4.7407]
[1761231818594,7.3692,189.86,189.79,7.5507]
[1761231819193,7.3692,189.86,189.79,2.81]
[1761231819491,2.63,189.86,189.7,9.486]
[1761231819698,2.63,189.86,189.77,4.7411]
[1761231820200,7.3697,189.84,189.77,4.7411]
[1761231820906,2.63,189.83,189.76,2.81]
[1761231822096,2.63,189.83,189.76,7.5514]
[1761231822304,2.63,189.83,189.76,2.81]
[1761231823003,2.63,189.83,189.77,4.7412]
[1761231823909,2.63,189.83,189.77,7.5512]
[1761231824108,2.63,189.83,189.79,2.81]
[1761231824405,4.7397,189.84,189.79,2.81]
[1761231824609,7.3697,189.84,189.79,2.81]
[1761231825013,2.63,189.83,189.79,2.81]
[1761231826106,2.63,189.83,189.78,4.7409]
[1761231826311,2.63,189.83,189.75,2.81]
[1761231826918,7.37,189.83,189.75,7.5517]
[1761231827116,7.37,189.83,189.75,2.81]
[1761231827414,2.63,189.83,189.75,2.81]
[1761231829008,7.3702,189.82,189.76,4.7415]
[1761231829408,2.63,189.82,189.75,2.81]
[1761231829712,2.63,189.85,189.76,4.7415]
[1761231829915,4.45623293,189.86,189.71,6.5325608]
[1761231830118,2.63,189.88,189.72,2.81]
[1761231830820,2.63,189.88,189.73,2.81]
[1761231831015,7.3689,189.87,189.81,4.7402]
[1761231831410,7.3689,189.87,189.78,2.81]
[1761231832209,7.3689,189.87,189.8,4.7404]
[1761231832711,7.3689,189.87,189.81,4.7402]
[1761231832912,2.63,189.87,189.78,2.81]
[1761231834014,2.63,189.87,189.82,4.7399]
[1761231834520,2.63,189.87,189.83,2.81]
[1761231834719,2.63,189.87,189.83,7.5497]
[1761231835515,4.7384,189.89,189.83,7.5497]
[1761231836022,7.3684,189.89,189.83,7.5497]
[1761231837121,2.63,189.88,189.83,4.7397]
[1761231837523,7.3687,189.88,189.81,4.7402]
[1761231838127,7.3687,189.88,189.82,4.74]
[1761231838325,4.45623293,189.91,189.8,2.81]
[1761231838530,4.45623293,189.92,189.84,2.81]
[1761231838722,7.08623293,189.93,189.84,2.81]
[1761231839027,2.69,189.92,189.84,2.81]
[1761231839223,2.69,189.92,189.86,4.7389]
[1761231839631,7.4277,189.92,189.84,2.81]
[1761231841131,7.4277,189.92,189.85,4.7392]
[1761231841330,2.69,189.91,189.84,2.81]
[1761231841733,2.69,189.91,189.84,7.5494]
[1761231841934,2.69,189.91,189.84,2.81]
[1761231843020,2.69,189.91,189.86,4.7389]
[1761231843435,2.69,189.91,189.87,2.86]
[1761231844638,2.69,189.91,189.81,2.86]
[1761231844826,5.18665464,189.9,189.81,2.86]
[1761231845535,9.92485464,189.9,189.84,4.7395]
[1761231845931,2.69,189.89,189.85,4.7392]
[1761231846829,2.69,189.89,189.85,7.5992]
[1761231847231,2.69,189.89,189.85,2.86]
[1761231847428,7.4282,189.9,189.85,2.86]
[1761231847631,2.69,189.89,189.85,2.86]
[1761231847833,2.69,189.89,189.86,4.70914295]
[1761231848036,2.69,189.89,189.87,4.70914295]
[1761231848236,2.69,189.89,189.88,4.70914295]
[1761231848930,2.69,189.86,189.78,2.86]
[1761231849131,5.18665464,189.86,189.78,2.86]
[1761231849840,9.92585464,189.86,189.78,7.6009]
[1761231850133,9.92585464,189.86,189.73,110.16882116]
[1761231850134,2.69,189.8,189.73,110.16882116]
[1761231850333,2.69,189.8,189.73,2.86]
[1761231850536,2.69,189.77,189.69,2.86]
[1761231851138,2.69,189.77,189.64,9.02921544]
[1761231851139,2.69,189.74,189.65,2.86]
[1761231851832,2.49665464,189.72,189.65,2.86]
[1761231852030,4.40475546,189.77,189.61,2.49665464]
[1761231852031,2.69,189.68,189.61,2.86]
[1761231852232,2.49665464,189.66,189.57,2.86]
[1761231852434,2.69,189.65,189.57,2.86]
[1761231852633,2.49665464,189.66,189.57,2.86]
[1761231852943,2.69,189.69,189.54,2.86]
[1761231853330,6.71361585,189.71,189.55,2.86]
[1761231853535,2.69,189.73,189.62,4.7448]
[1761231853842,2.69,189.72,189.62,4.7448]
[1761231854039,2.69,189.72,189.64,4.7445]
[1761231854345,2.69,189.72,189.64,2.86]
[1761231854744,2.69,189.72,189.66,2.86]
[1761231855141,2.69,189.72,189.65,4.7443]
[1761231855843,2.69,189.76,189.58,2.86]
[1761231856034,2.69,189.76,189.61,2.86]
[1761231856234,2.69,189.76,189.62,2.86]
[1761231856430,2.69,189.76,189.68,4.7433]
[1761231857641,2.69,189.76,189.69,4.7431]
[1761231858837,2.69,189.75,189.64,2.86]
[1761231859442,2.69,189.75,189.67,4.7436]
[1761231860641,2.69,189.75,189.68,2.86]
[1761231861042,2.69,189.75,189.69,4.69060665]
[1761231861236,2.69,189.75,189.7,4.69060665]
[1761231861440,2.69,189.75,189.68,2.86]
[1761231861648,2.69,189.75,189.69,4.68943469]
[1761231861950,6.76524639,189.77,189.7,4.68943469]
[1761231862141,2.69,189.77,189.71,4.68943469]
[1761231862443,2.69,189.77,189.61,44.22]
[1761231862444,151.68,189.87,189.73,2.86]
[1761231862651,2.69,189.85,189.75,2.86]
[1761231862848,2.69,189.85,189.76,4.68943469]
[1761231863148,4.7395,189.85,189.77,9.43053469]
[1761231863355,2.69,189.84,189.78,4.68943469]
[1761231863648,2.69,189.84,189.77,7.6011]
[1761231863954,156.4188,189.87,189.79,2.86]
[1761231864259,156.4188,189.87,189.8,4.68237495]
[1761231864446,156.4188,189.87,189.81,4.68237495]
[1761231864648,156.4188,189.87,189.79,2.86]
[1761231864841,156.4188,189.87,189.8,4.68063378]
[1761231865048,156.4188,189.87,189.81,4.68063378]
[1761231865245,7.4283,189.89,189.71,4.07524639]
[1761231865455,7.4283,189.89,189.8,2.86]
[1761231865746,7.4283,189.89,189.81,4.68029017]
[1761231865947,2.69,189.87,189.82,4.68029017]
[1761231866154,2.69,189.87,189.76,2.83]
[1761231866355,4.7393,189.86,189.77,9.42152413]
[1761231866551,7.4293,189.86,189.78,4.68042413]
[1761231866747,7.4293,189.86,189.79,4.68042413]
[1761231866950,2.69,189.86,189.8,4.68042413]
[1761231867150,2.69,189.86,189.81,4.68110194]
[1761231867345,2.69,189.86,189.78,7.5709]
[1761231867542,2.69,189.86,189.79,4.680757]
[1761231867744,2.69,189.84,189.8,4.680757]
[1761231867953,2.69,189.84,189.75,4.7416]
[1761231868158,2.69,189.84,189.76,4.68173004]
[1761231868365,2.69,189.82,189.77,4.68173004]
[1761231868555,2.69,189.82,189.78,4.6833544]
[1761231868751,2.69,189.82,189.75,4.7416]
[1761231869054,2.7,189.86,189.77,2.82]
[1761231869261,2.7,189.86,189.78,4.68335852]
[1761231869459,2.7,189.83,189.79,4.68335852]
[1761231869655,2.7,189.83,189.77,2.82]
[1761231869850,4.7396,189.84,189.78,4.68227458]
[1761231870153,7.4396,189.84,189.79,4.68227458]
[1761231870358,7.4396,189.84,189.77,2.82]
[1761231870558,7.4396,189.84,189.78,4.68059661]
[1761231870763,7.4396,189.84,189.79,7.46059661]
[1761231871062,7.4396,189.84,189.79,2.78]
[1761231871267,2.67,189.83,189.71,4.07524639]
[1761231871466,2.67,189.83,189.73,2.78]
[1761231871665,2.67,189.83,189.75,2.78]
[1761231871869,2.67,189.83,189.76,4.6805479]
[1761231872071,2.67,189.83,189.77,4.6805479]
[1761231872265,2.67,189.83,189.78,4.6805479]
[1761231872466,2.67,189.83,189.79,4.67928295]
[1761231872764,2.67,189.83,189.75,2.78]
[1761231872973,2.67,189.83,189.76,12.19984469]
[1761231873166,2.67,189.83,189.77,4.67844469]
[1761231873362,4.7396,189.84,189.71,4.07524639]
[1761231873363,4.7391,189.86,189.79,2.78]
[1761231873670,4.7391,189.86,189.8,4.67844469]
[1761231873870,4.7391,189.86,189.79,2.78]
[1761231874170,4.7391,189.86,189.8,7.45792559]
[1761231874469,2.67,189.85,189.81,4.67792559]
[1761231874669,2.67,189.85,189.8,2.78]
[1761231874858,2.67,189.85,189.81,4.67662574]
[1761231875064,7.4095,189.85,189.8,2.78]
[1761231875262,7.4095,189.85,189.77,4.7412]
[1761231875263,2.67,189.84,189.77,4.7412]
[1761231875465,2.67,189.84,189.78,4.67620625]
[1761231875660,2.67,189.84,189.76,2.78]
[1761231875861,2.67,189.84,189.77,4.67642114]
[1761231876062,2.67,189.84,189.78,4.67642114]
[1761231876258,2.67,189.82,189.79,4.67568671]
[1761231876467,2.67,189.82,189.76,2.78]
[1761231876667,2.67,189.82,189.77,7.45590428]
[1761231876871,2.67,189.82,189.78,4.67590428]
[1761231877067,2.67,189.82,189.79,4.67590428]
[1761231877274,2.67,189.82,189.77,2.78]
[1761231877571,2.67,189.82,189.78,4.67725853]
[1761231877770,7.4102,189.82,189.79,4.67725853]
[1761231877974,7.4102,189.82,189.75,4.7417]
[1761231877975,2.67,189.81,189.75,4.7417]
[1761231878267,2.67,189.81,189.76,4.67889683]
[1761231878461,2.67,189.81,189.75,4.7417]
[1761231879562,2.67,189.81,189.74,2.78]
[1761231880065,2.67,189.78,189.71,4.7427]
[1761231880273,2.67,189.78,189.71,7.5227]
[1761231882171,2.67,189.78,189.72,4.7424]
[1761231882380,4.7409,189.79,189.72,7.5224]
[1761231884671,1.59960687,189.77,189.72,7.5224]
[1761231884975,1.59960687,189.77,189.72,4.7424]
[1761231885178,1.59960687,189.77,189.73,2.78]
[1761231885879,4.26960687,189.77,189.73,2.78]
[1761231886076,1.59960687,189.75,189.7,4.7429]
[1761231886381,1.59960687,189.75,189.69,2.78]
[1761231886382,1.59960687,189.73,189.67,2.78]
[1761231886784,1.59960687,189.73,189.69,2.78]
[1761231887075,4.26960687,189.73,189.69,2.78]
[1761231887983,1.59960687,189.73,189.69,2.78]
[1761231888284,1.59960687,189.73,189.69,7.5232]
[1761231889075,1.59960687,189.73,189.7,2.78]
[1761231889281,1.59960687,189.74,189.7,2.78]
[1761231889580,1.59960687,189.8,189.7,1.59960687]
[1761231889770,2.67,189.82,189.71,2.78]
[1761231889771,1.59960687,189.78,189.71,2.78]
[1761231890979,1.59960687,189.78,189.74,2.78]
[1761231891876,1.59960687,189.75,189.68,2.78]
[1761231892076,1.59960687,189.7,189.68,2.78]
[1761231892272,2.67,189.75,189.68,2.78]